Cogmind - Beta 11 X8 @@@ ROGUE MODE // 2021.10.23 @ 15:11:33 Player: IceBox Result: Destroyed by D-53 Grenadier with Mini Grenade Launcher Performance ------------- Evolutions (0) 0 Regions Visited (2) 400 Robots Destroyed (26) 130 Value Destroyed (528) 528 Prototype IDs (2) 40 Alien Tech Used (0) 0 Bonus (10) 10 TOTAL SCORE: 1108 Bonus ------- Follower Combat Kills 33 Friendly Fire -23 Cogmind --------- Core Integrity 0/250 Matter 202/300 Energy 10/250 System Corruption 2% Temperature Cool (25) Movement Treading (320) Ox2 Location -10/Mines Parts ------- > --- POWER (1) -------- Ion Engine > --- PROPULSION (2) --- Light Treads Compact Wheel > --- UTILITY (2) ------ High-capacity Storage Unit Light Armor Plating > --- WEAPON (2) ------- EM Shotgun > --- INVENTORY (20) --- Light Ion Engine Light Treads Light Treads Wheel Signal Interpreter Targeting Computer Trap Extractor EM Shotgun EM Shotgun Assault Rifle Assault Rifle Assault Rifle Light Assault Rifle Light Assault Rifle Grenade Launcher Grenade Launcher Plasma Cutter Peak State ------------ > --- POWER ------------ Light Ion Engine > --- PROPULSION ------- Light Treads Compact Wheel > --- UTILITY ---------- Improved Heat Sink High-capacity Storage Unit > --- WEAPON ----------- EM Shotgun EM Shotgun > --- INVENTORY -------- Ion Engine Light Ion Engine Light Ion Engine Light Treads Light Treads Wheel Heat Sink Heat Sink Signal Interpreter Trap Extractor EM Shotgun EM Shotgun Assault Rifle Assault Rifle Assault Rifle Light Assault Rifle Light Assault Rifle Grenade Launcher Grenade Launcher Plasma Cutter [Rating: 13] Favorites ----------- Power Light Ion Engine Engine Light Ion Engine Power Core Light Nuclear Core Propulsion Light Treads Treads Light Treads Leg Aluminum Leg Wheel Wheel Utility Improved Heat Sink Device Improved Heat Sink Storage Large Storage Unit Protection Light Armor Plating Weapon Light Assault Rifle Energy Gun EM Shotgun Ballistic Gun Light Assault Rifle Build | -11 -10 -10 ------- Run | Scr Mat Min Slots Evolved . | . . . Power . | . . . Propulsion . | . . . Utility . | . . . Weapon . | . . . Parts Attached 26 | 3 16 7 Power 4 | . 3 1 Engine 3 | . 2 1 Core 1 | . 1 . Reactor . | . . . Propulsion 7 | 2 5 . Treads 4 | 2 2 . Leg . | . . . Wheel 3 | . 3 . Hover . | . . . Flight . | . . . Utility 5 | . 3 2 Device 1 | . 1 . Storage 2 | . 2 . Processor . | . . . Hackware . | . . . Protection 2 | . . 2 Artifact . | . . . Weapon 10 | 1 5 4 Energy Gun 4 | . 2 2 Energy Cannon . | . . . Ballistic Gun 6 | 1 3 2 Ballistic Cannon . | . . . Launcher . | . . . Special Weapon . | . . . Impact Weapon . | . . . Slashing Weapon . | . . . Piercing Weapon . | . . . Special Melee Weapon . | . . . Unidentified Prototypes . | . . . Parts Lost 8 | . 4 4 Power 1 | . . 1 Propulsion 1 | . 1 . Utility 2 | . . 2 Weapon 4 | . 3 1 Highest Loss Streak 4 | . 2 4 Average Slot Usage (%) 96 | . 95 99 Engine 12 | . 12 13 Treads 15 | . 16 14 Wheel 12 | . 11 14 Device 10 | . 10 12 Storage 14 | . 14 14 Energy Gun 4 | . . 21 Ballistic Gun 23 | . 26 6 Naked Turns . | . . . Heaviest Build 50 | 11 50 50 Greatest Support 40 | 40 40 16 Greatest Overweight (x) 3 | . 3 3 Average Overweight (x) 1 | . 1 2 Largest Inventory Capacity 20 | 8 20 20 Average Capacity 14 | 8 13 20 Most Carried 20 | 8 20 20 Average Carried 13 | 6 12 19 Final Capacity 20 | 8 20 20 Final Carried 20 | 8 20 17 Class Distribution -------------------- 68% | Mutant 31% | Scavenger-Mutant Dominant Class ---------------- Mutant | -10/Materials Mutant | -10/Mines Resources | -11 -10 -10 ----------- Run | Scr Mat Min Matter Collected 640 | 262 378 . Remotely . | . . . Salvage Created 855 | 125 674 56 Parts 56 | 6 46 4 Haulers Intercepted 2 | . 2 . Recyclers Shooed . | . . . Parts Field Recycled . | . . . Retrieved Matter . | . . . Parts Self-Destructed . | . . . Prevented . | . . . Kills | -11 -10 -10 ------- Run | Scr Mat Min Combat Hostiles Destroyed 18 | . 15 3 Guns 18 | . 15 3 Classes Destroyed 10 | 2 6 2 Worker 2 | . 2 . Builder 1 | . 1 . Tunneler 1 | 1 . . Hauler 2 | . 2 . Recycler 1 | 1 . . Watcher 3 | . 3 . Swarmer 5 | . 5 . Grunt 10 | . 10 . Demolisher 1 | . . 1 Assembled 2 | . . 2 Best Kill Streak 5 | 2 5 3 Combat Bots Only 4 | . 4 3 Max Kills in Single Turn 1 | 1 1 1 Gunslinging . | . . . Exploded . | . . . Melee . | . . . Uniques/NPCs Destroyed . | . . . Combat | -11 -10 -10 -------- Run | Scr Mat Min Damage Taken 1370 | . 694 676 Core 259 | . 105 154 Absorbed by Shields . | . . . Core Remaining (%) 100 | 100 . . Volleys Fired 110 | 8 89 13 Largest 2 | 2 2 2 Hottest 90 | 40 90 90 Shots Fired 215 | 16 176 23 Gun 215 | 16 176 23 Cannon . | . . . Launcher . | . . . Special . | . . . Kinetic 202 | 16 170 16 Thermal . | . . . Explosive . | . . . Electromagnetic 13 | . 6 7 Robot Hit Streak 9 | 5 9 5 Robot Miss Streak 5 | 1 3 5 Penetration Max . | . . . Secondary Targets 1 | . 1 . Max Gunslinging Chain 1 | . 1 . Shots Hit Robots 139 | 12 113 14 Core Hits 62 | 3 48 11 Critical Kills . | . . . Critical Parts Destroyed . | . . . Critical Strikes . | . . . Melee Attacks . | . . . Impact . | . . . Slashing . | . . . Piercing . | . . . Sneak Attacks . | . . . Combat Hostiles . | . . . Follow-up Attacks . | . . . Damage Inflicted 1402 | 131 1064 207 Guns 1402 | 131 1064 207 Cannons . | . . . Explosions . | . . . Melee . | . . . Ramming . | . . . Kinetic 1240 | 131 978 131 Thermal . | . . . Explosive . | . . . Electromagnetic 162 | . 86 76 Impact . | . . . Slashing . | . . . Piercing . | . . . Highest Corruption 2 | . 2 2 Average Corruption 2 | . 2 2 Corruption Purged . | . . . Effects 11 | . 9 2 Message Errors 2 | . 1 1 Energy Discharges 5 | . 4 1 Data Loss (minor) 4 | . 4 . Overload Shots . | . . . Overflow Damage . | . . . Projectiles . | . . . Explosions . | . . . Melee . | . . . Knockbacks . | . . . Impact . | . . . Kinetic . | . . . Secondary . | . . . Self-Inflicted Damage . | . . . Shots . | . . . Rammed . | . . . Targets Rammed . | . . . Kicked . | . . . Crushed . | . . . Highest Temperature 48 | . 12 48 Average Temperature 12 | . 6 21 Received Heat Transfer 216 | . 216 . Siege Activations . | . . . Robots Corrupted . | . . . Combat Hostiles . | . . . Parts Fried 2 | . 2 . Impact Corruptions . | . . . Robots Melted . | . . . Combat Hostiles . | . . . Parts Melted . | . . . Heat Transferred . | . . . Parts Sabotaged . | . . . Parts Stolen . | . . . Parts Stripped . | . . . Power Chain Reactions . | . . . Missiles Intercepted . | . . . Alert | -11 -10 -10 ------- Run | Scr Mat Min Peak Influence 311 | 10 311 30 Initial 6 | . 6 4 Average 91 | 6 112 6 Maximum Alert Level 1 | . 1 . Low Security (%) 76 | 100 70 100 Level 1 23 | . 29 . Level 2 . | . . . Level 3 . | . . . Level 4 . | . . . Level 5 . | . . . High Security . | . . . Max Security . | . . . Squads Dispatched 4 | . 4 . Investigation 3 | . 3 . Extermination . | . . . Reinforcement 1 | . 1 . Assault . | . . . Garrison . | . . . Intercept . | . . . Construction Impeded . | . . . Haulers Reinforced . | . . . Active Scanning Responses . | . . . Cargo Convoy Interrupts . | . . . Stealth | -11 -10 -10 --------- Run | Scr Mat Min Distress Signals 2 | . 2 . Communications Jammed . | . . . Distress Signals . | . . . Times Spotted 43 | . 28 15 Peak Tracking Total 10 | . 7 10 Tactical Retreats 1 | . . 1 Traps | -11 -10 -10 ------- Run | Scr Mat Min Traps Triggered 4 | . 4 . Indirectly . | . . . Trap Hack Attempts . | . . . Triggered . | . . . Disarmed . | . . . Reprogrammed . | . . . Reused . | . . . Traps Extracted . | . . . Installed . | . . . Triggered . | . . . Machines | -11 -10 -10 ---------- Run | Scr Mat Min Machines Disabled 2 | . . 2 Max in Single Turn . | . . . Machines Sabotaged . | . . . Garrisons Compromised . | . . . Overloaded Fab Kills . | . . . Hacking | -11 -10 -10 --------- Run | Scr Mat Min Machines Accessed 11 | . 11 . Terminals 8 | . 8 . Fabricators . | . . . Repair Stations 1 | . 1 . Recycling Units 2 | . 2 . Scanalyzers . | . . . Garrison Access . | . . . Total Hacks 29 | . 29 . Successful 15 | . 15 . Failed 14 | . 14 . Catastrophic 1 | . 1 . Database Lockouts . | . . . Manual 15 | . 15 . Terminals 26 | . 26 . Fabricators . | . . . Repair Stations 1 | . 1 . Recycling Units 2 | . 2 . Scanalyzers . | . . . Garrison Access . | . . . Terminal Hacks 10 | . 10 . Robot Analysis 2 | . 2 . Prototype ID Bank 1 | . 1 . Terminal Index 1 | . 1 . Alert Level 1 | . 1 . Unreport Threat 1 | . 1 . Recall Investigation 1 | . 1 . Hauler Manifests 1 | . 1 . Registered Components 1 | . 1 . Zone Layout 1 | . 1 . Fabricator Hacks . | . . . Repair Station Hacks . | . . . Recycling Unit Hacks . | . . . Scanalyzer . | . . . Garrison Access Hacks . | . . . Unauthorized Hacks 5 | . 5 . Terminals 3 | . 3 . Track 1 | . 1 . Assimilate 1 | . 1 . Operators 1 | . 1 . Fabricators . | . . . Repair Stations 1 | . 1 . Mechanics 1 | . 1 . Recycling Units 1 | . 1 . Tunnel 1 | . 1 . Scanalyzers . | . . . Garrison Access . | . . . Data Cores Recovered . | . . . Used . | . . . Hacking Detections 9 | . 9 . Full Trace Events . | . . . Feedback Events . | . . . Feedback Blocked . | . . . Robot Schematics Acquired . | . . . Robots Built . | . . . Authchips . | . . . Time . | . . . Total Robot Build Rating . | . . . Part Schematics Acquired . | . . . Parts Built . | . . . Authchips . | . . . Time . | . . . Total Part Build Rating . | . . . Parts Repaired . | . . . Time . | . . . Parts Recycled . | . . . Recycled Matter . | . . . Retrieved Matter . | . . . Retrieved Components . | . . . Parts Scanalyzed . | . . . Part Schematics Acquired . | . . . Parts Damaged . | . . . Bothacking | -11 -10 -10 ------------ Run | Scr Mat Min Used RIF Installer . | . . . Robots Hacked . | . . . Non-combat . | . . . Combat . | . . . Robot Hacks Applied . | . . . Relay Couplers Released . | . . . Robots Rewired . | . . . Allies Hacked . | . . . Hacks Repelled . | . . . Allies | -11 -10 -10 -------- Run | Scr Mat Min Total Allies 3 | . . 3 Largest Group 3 | . . 3 Highest-Rated Group 40 | . . 40 Highest-Rated Ally 16 | . . 16 Total Orders . | . . . Ally Attacks 21 | . . 21 Total Damage 217 | . . 217 Kills 1 | . . 1 Allies Corrupted 1 | . . 1 Allies Melted . | . . . Intel | -11 -10 -10 ------- Run | Scr Mat Min Robot Analysis Total 2 | . 2 . Derelict Logs Recovered . | . . . Drone Launches . | . . . Drone Recoveries . | . . . Exploration | -11 -10 -10 ------------- Run | Scr Mat Min Turns Passed 1647 | 88 1325 234 Spaces Moved 968 | 36 813 119 Core . | . . . Treads 119 | 34 85 . Legs 2 | 2 . . Wheels 847 | . 728 119 Hover . | . . . Flight . | . . . Fastest Speed 95 | 120 95 130 Average Speed 121 | 157 116 143 Slowest Speed 240 | 160 240 145 Overloaded Moves . | . . . Propulsion Burnouts . | . . . Robots Hopped . | . . . Cave-ins Triggered . | . . . Exploration Rate (%) 41 | 3 98 22 Regions Visited 2 Branch Regions 1 Pre-discovered Areas 1 | . 1 . Known Exits Taken . | . . . Unknown Exits Taken 2 | 1 1 . Scrap Searched . | . . . Spaces Dug . | . . . Terrain Destroyed . | . . . Melee . | . . . Projectile . | . . . AOE . | . . . Terrain Rammed . | . . . Walls Destroyed . | . . . Machines Disabled . | . . . Actions | -11 -10 -10 --------- Run | Scr Mat Min Total 1258 | 52 1048 158 Wait 98 | . 83 15 Move 966 | 35 812 119 Hop . | . . . Pick Up 36 | 4 30 2 Fast Attach 3 | . 3 . Attach 7 | . 4 3 Detach . | . . . Swap 16 | 3 9 4 Drop 22 | 2 18 2 Fire 110 | 8 89 13 Melee . | . . . Ram . | . . . Kick . | . . . Crush . | . . . Escape Stasis . | . . . Rewire . | . . . Trap . | . . . Miscellaneous . | . . . Route ------- -11/Scrapyard -10/Materials (discovered 4 exits: [*Mat x3] / [*Min]) -10/Mines (discovered 1 exit: [*Mat]) History --------- Turn | Location | Event 1 | -11/Scrapyard | Discovered new exit (range 2) 89 | -11/Scrapyard | Entered Materials 317 | -10/Materials | Build established: Mutant 332 | -10/Materials | Discovered new exit (range 8) 711 | -10/Materials | Discovered new exit (range 8) 749 | -10/Materials | Discovered new exit (range 15) 834 | -10/Materials | Build established: Scavenger-Mutant 892 | -10/Materials | Discovered new exit (range 16) 1414 | -10/Materials | Entered Mines 1422 | -10/Mines | Discovered new exit (range 10) 1436 | -10/Mines | Assisted by bots powering up and referring to "LRC-V3" 1510 | -10/Mines | Build established: Mutant 1590 | -10/Mines | Assembled infested the area 1625 | -10/Mines | Core integrity fell below 50% 1639 | -10/Mines | Core integrity fell below 20% 1648 | -10/Mines | Destroyed by D-53 Grenadier with Mini Grenade Launcher Last Messages --------------- 01621_ Imp. Heat Sink destroyed. 01622_ as-76090 destroyed. 01622_ as-42899 destroyed. 01625_ as-82862 destroyed. 01626_ as-81128 destroyed. 01628_ as-30603 destroyed. 01629_ K-01 Serf collects debris. 01631_ The unstable cave ceiling collapses. 01632_ Lgt. Ion Engine destroyed. 01632_ Lgt. Armor Plating destroyed. 01635_ The unstable cave ceiling collapses. 01635_ K-01 Serf collects debris. 01637_ D-53 Grenadier destroyed. 01637_ K-01 Serf collects debris. 01638_ The unstable cave ceiling collapses. 01640_ K-01 Serf collects debris. 01642_ The unstable cave ceiling collapses. 01644_ EM Shotgun destroyed. 01644_ K-01 Serf collects debris. 01645_ The unstable cave ceiling collapses. Map ----- +----------------------------------------------------+ | | | | | | | | | | | | | | | | | | | | | ???????????????????????????????????????? | | ???????????????????????????????????????? | | ???????????????????????????????????????? | | ???????????????????????????????????????? | | ???????????????????????????????????????? | | ???????????????????????????????????????? | | ???????????????????????????????????????? | | ???????????????????????????????????????? | | ?????????????##????????????????????????? | | ????????????? ?????????????????######## | | ????????????## ####????########## | | ??????????### ##??## # ###### | | ??????????# # ## # #????? | | ????????### #####????? | | ????????# # k #????????? | | ????????# @ !=% ####????????? | | ????????## *%! ####???????????? | | ?????????# d ! #?????????????? | | ?????????# #?????????????? | | ?????????### # #?????????????? | | ???????????## ] #?????????????? | | ????????????#### #?????????????? | | ???????????????? # #?????????????? | | ????????????????# a #?????????????? | | ?????????????????## # ####?????????????? | | ??????????????????# ###????????????????? | | ??????????????????# #??????????????????? | | ??????????????????# #??????????????????? | | ??????????????????# ???????????????????? | | ??????????????????# ???????????????????? | | ???????????????????#???????????????????? | | ???????????????????????????????????????? | | ???????????????????????????????????????? | | ???????????????????????????????????????? | | ???????????????????????????????????????? | | ???????????????????????????????????????? | | ???????????????????????????????????????? | | ???????????????????????????????????????? | | ???????????????????????????????????????? | | ???????????????????????????????????????? | +----------------------------------------------------+ Best States ------------- Heat Dissipation 39 Energy Generation 14 Energy Capacity 250 Matter Stores 300 Matter Capacity 300 Sight Range 16 Terrain Scan Density 10 Armor Coverage 150 Evasion (%) 41 Recoil Reduction 2 Item Schematics ----------------- None Robot Schematics ------------------ None Fabricated ------------ Nothing Alien Tech Used ----------------- None Achievements -------------- None Challenges ------------ None Game ------ Seed EnhancedChainFemtoactuators Manual? 0 Play Time 00:18:29 Cumulative 84.9 hours Start 2021.10.23 @ 14:56:05 End 2021.10.23 @ 15:11:33 Sessions 1 Manual Loads 0 Difficulty Rogue Special Mode None Game No. 61 Rogue 60 Adventurer 1 Explorer 0 Win Type - Total 2 Types 2/0/0/0/0/0/0/0/0 Lore% 40 Gallery% 48 Achievement% 41 Wizard Run 0 Options --------- ASCII 0 Keyboard 1 Movement Vi Keybinds 0 Fullscreen 2 Font 18/TerminusBold Map View 76x50 Tactical HUD 1 Map Filters NONE Filters NONE Steam 1 RUN: b8ba552d-92ae-4696-9a4a-6d9741e9b230